bitfinex/quotes_ETHUSD_20240603
["timestamp","ask_amount","ask_price","bid_price","bid_amount"]
[1717379361748,2.63216,3799.2,3798.2,0.55]
[1717379361918,2.63216,3799.2,3798.4,0.05606819]
[1717379362242,2.63216,3799.2,3798.2,0.55]
[1717379362552,2.3133,3799.5,3798.1,3.0]
[1717379362708,2.6324,3798.9,3798.3,0.05606819]
[1717379362908,4.9686,3798.9,3798.3,0.05606819]
[1717379363119,4.9686,3798.9,3798.1,3.0]
[1717379363425,4.9686,3798.9,3798.4,0.05606819]
[1717379363622,4.9686,3798.9,3798.1,3.0]
[1717379363959,4.9686,3798.9,3798.5,0.05645001]
[1717379364257,4.9686,3798.9,3798.2,0.05645001]
[1717379364426,4.9686,3798.9,3798.1,3.0]
[1717379364609,4.9686,3798.9,3798.3,0.05645001]
[1717379364808,4.9686,3798.9,3798.1,3.0]
[1717379365056,4.9686,3798.9,3798.4,0.05645001]
[1717379365204,4.9686,3798.9,3798.1,3.0]
[1717379365553,4.9686,3798.9,3798.5,0.05645001]
[1717379365704,4.9686,3798.9,3798.6,0.05645001]
[1717379366222,4.9686,3798.9,3798.7,0.05645001]
[1717379366639,4.9686,3798.9,3798.1,3.0]
[1717379366855,4.9686,3798.9,3798.8,0.05645001]
[1717379367009,4.9686,3798.9,3798.1,3.0]
[1717379367204,4.9686,3798.9,3798.8,0.05645001]
[1717379367405,4.9686,3798.9,3797.9,3.0]
[1717379367406,4.9686,3798.9,3797.8,1.139]
[1717379367724,2.63279,3798.3,3797.7,3.0]
[1717379367922,2.63279,3798.3,3797.4,1.139]
[1717379368308,2.63279,3798.3,3797.2,3.0]
[1717379368558,5.03499,3798.3,3797.3,1.139]
[1717379368756,5.03499,3798.3,3797.3,4.139]
[1717379369107,5.03499,3798.3,3797.4,0.55]
[1717379370356,5.03499,3798.3,3797.4,1.689]
[1717379370523,5.03499,3798.3,3797.4,4.689]
[1717379370956,5.03499,3798.3,3797.4,1.689]
[1717379371455,5.03499,3798.3,3797.4,0.55]
[1717379371821,5.03499,3798.3,3797.5,0.05682785]
[1717379373054,2.63249,3798.7,3797.6,2.3327]
[1717379373364,2.63249,3798.7,3797.7,1.689]
[1717379373510,2.63249,3798.7,3797.7,4.32213]
[1717379373716,2.63249,3798.7,3797.8,0.05682785]
[1717379377419,9.7291,3798.8,3797.9,3.183]
[1717379377621,9.7291,3798.8,3798.0,3.0]
[1717379377857,9.7291,3798.8,3798.1,0.05686402]
[1717379378353,7.28,3798.8,3798.1,2.31506402]
[1717379378747,5.05959,3799.2,3798.1,2.31506402]
[1717379379314,5.05959,3799.2,3798.2,2.63282]
[1717379379760,5.05959,3799.2,3798.3,0.0569002]
[1717379387846,5.05959,3799.2,3798.5,0.474]
[1717379388245,5.05959,3799.2,3798.6,0.05680373]
[1717379389255,5.05959,3799.2,3798.2,3.10682]
[1717379389742,5.05959,3799.2,3798.3,0.05671127]
[1717379391482,5.53359,3799.2,3798.3,0.05671127]
[1717379391896,5.53359,3799.2,3798.2,0.474]
[1717379392097,5.53359,3799.2,3798.4,0.05683188]
[1717379392290,5.53359,3799.2,3798.2,0.474]
[1717379392884,5.53359,3799.2,3798.3,0.05683188]
[1717379395799,5.05959,3799.2,3798.3,0.05683188]
[1717379396024,5.05959,3799.2,3798.4,0.474]
[1717379396243,5.05959,3799.2,3798.5,0.05684796]
[1717379396903,5.05959,3799.2,3798.3,0.474]
[1717379397396,5.05959,3799.2,3798.4,0.05684796]
[1717379401342,5.05959,3799.2,3798.5,0.474]
[1717379401850,5.05959,3799.2,3798.6,0.05696453]
[1717379402360,7.28,3799.4,3798.9,0.474]
[1717379402679,7.28,3799.9,3799.3,0.474]
[1717379402959,2.3632,3799.8,3799.3,0.474]
[1717379403138,2.63161,3800.0,3799.5,0.474]
[1717379403455,2.63161,3800.0,3799.6,0.05677156]
[1717379403805,2.63161,3800.0,3799.4,0.474]
[1717379404158,2.63161,3800.0,3799.5,0.05677156]
[1717379404651,2.63161,3800.0,3799.1,3.474]
[1717379404949,3.10561,3800.0,3799.6,0.05653443]
[1717379405144,3.10561,3800.0,3799.1,3.0]
[1717379405346,3.10561,3800.0,3799.7,0.05658265]
[1717379405647,3.10561,3800.0,3799.8,0.05658265]
[1717379405817,3.10561,3800.0,3799.1,3.0]
[1717379406023,3.10561,3800.0,3799.2,0.05658265]
[1717379406428,2.3412,3799.9,3799.2,0.05658265]
[1717379406633,2.3412,3799.9,3798.7,2.63246]
[1717379406834,2.3412,3799.9,3799.0,0.474]
[1717379407214,2.3412,3799.9,3799.1,0.05661078]
[1717379407763,2.3412,3799.9,3799.2,0.474]
[1717379407921,2.3412,3799.9,3799.4,0.474]
[1717379408266,2.3412,3799.9,3799.5,0.05668313]
[1717379409170,2.63161,3800.0,3799.6,0.474]
[1717379409373,2.3412,3800.2,3799.9,0.474]
[1717379409925,2.3412,3800.2,3799.7,0.474]
[1717379410341,7.28,3800.3,3799.9,0.474]
[1717379413725,2.63131,3800.4,3799.4,2.63192]
[1717379413937,2.63131,3800.4,3799.8,0.474]
[1717379414342,2.63131,3800.4,3799.4,2.63192]
[1717379414743,2.63131,3800.4,3799.6,0.474]
[1717379414940,2.63144,3800.2,3799.5,0.05619276]
[1717379415298,2.63144,3800.2,3799.1,3.0]
[1717379415299,2.63161,3800.0,3799.6,0.05601191]
[1717379415650,2.63161,3800.0,3799.1,3.474]
[1717379415992,2.63161,3800.0,3799.2,0.05601191]
[1717379416489,2.63161,3800.0,3799.3,0.474]
[1717379416841,2.3884,3800.1,3799.5,0.474]
[1717379417041,5.0599,3800.5,3799.7,0.474]
[1717379417283,5.0599,3800.5,3799.9,0.474]
[1717379417672,5.0599,3800.5,3800.0,0.05431849]
[1717379418240,5.0599,3800.5,3799.9,0.474]
[1717379419191,5.0599,3800.5,3799.8,0.474]
[1717379419887,5.0599,3800.5,3799.3,5.07739]
[1717379420187,5.0599,3800.5,3799.9,0.05431849]
[1717379420390,5.0599,3800.5,3799.3,5.07739]
[1717379420548,5.0599,3800.5,3800.0,0.05431849]
[1717379420745,5.0599,3800.5,3799.6,2.63183]
[1717379420955,5.0599,3800.5,3800.1,0.05431849]
[1717379421161,5.0599,3800.5,3799.6,2.63183]
[1717379421393,5.0599,3800.5,3800.2,0.05431849]
[1717379421564,5.0599,3800.5,3799.6,2.63183]
[1717379422056,7.28,3800.8,3799.7,0.05431849]
[1717379422260,2.3785,3800.8,3799.7,0.05431849]
[1717379425753,2.3785,3800.8,3799.8,2.2928]
[1717379426088,2.3785,3800.8,3799.9,0.05429439]
[1717379436295,2.63096,3800.9,3799.9,3.82389439]
[1717379438502,9.5862,3801.2,3799.9,3.82389439]
[1717379439016,9.5862,3801.2,3800.2,2.6314]
[1717379439514,9.5862,3801.2,3800.3,0.05424619]
[1717379439877,9.5862,3801.2,3800.2,2.6314]
[1717379440612,9.5862,3801.2,3800.3,0.05424619]
[1717379440789,9.5862,3801.2,3800.2,2.6314]
[1717379441195,9.5862,3801.2,3800.3,0.05424619]
[1717379441728,9.5862,3801.2,3800.4,0.05424619]
[1717379442012,9.5862,3801.2,3800.4,0.52824619]
[1717379442172,9.5862,3801.2,3800.4,0.474]
[1717379442372,9.5862,3801.2,3800.5,0.05424619]
[1717379442788,9.5862,3801.2,3800.4,0.474]
[1717379443403,9.5862,3801.2,3800.5,0.05424619]
[1717379443579,9.5862,3801.2,3800.4,0.474]
[1717379443778,9.5862,3801.2,3800.5,0.05424619]
[1717379444276,9.5862,3801.2,3800.6,0.05424619]
[1717379444695,9.5862,3801.2,3800.4,0.474]
[1717379445315,9.5862,3801.2,3800.5,0.05424619]
[1717379445517,9.5862,3801.2,3800.6,0.474]
[1717379445911,9.5862,3801.2,3800.6,0.52824619]
[1717379446107,9.5862,3801.2,3800.6,0.05424619]
[1717379446606,9.5862,3801.2,3800.6,0.05424216]
[1717379451830,9.5862,3801.2,3800.6,0.474]
[1717379452031,9.5862,3801.2,3800.6,0.52824216]
[1717379456094,9.5862,3801.2,3800.6,0.05424216]
[1717379456295,9.5862,3801.2,3800.6,0.52824216]
[1717379456491,9.5862,3801.2,3800.6,0.474]
[1717379456801,9.5862,3801.2,3800.6,0.52814576]
[1717379459048,7.28,3801.2,3800.6,0.52814576]
[1717379459266,7.28,3801.2,3800.6,0.05414576]
[1717379459409,7.28,3801.2,3800.6,0.52814576]
[1717379460559,7.28,3801.2,3800.6,2.46074576]
[1717379460704,7.28,3801.2,3800.6,2.93474576]
[1717379463626,7.28,3801.2,3800.6,2.46074576]
[1717379464163,7.28,3801.2,3800.6,2.93474576]
[1717379465409,7.28,3801.2,3800.6,2.46074576]
[1717379465847,7.28,3801.2,3800.6,2.93474576]
[1717379466505,7.28,3801.2,3800.6,2.46074576]
[1717379466707,7.28,3801.2,3800.6,3.48474576]
[1717379466936,7.28,3801.2,3800.6,6.48474576]
[1717379472165,7.28,3801.2,3801.1,2.63081]
[1717379472347,7.28,3801.2,3801.1,8.58711]
[1717379472655,7.28,3801.2,3801.1,8.63824406]
[1717379473063,2.3746,3802.1,3801.6,2.63043]
[1717379473247,2.3746,3802.1,3802.0,0.474]
[1717379473448,2.3746,3802.1,3802.0,0.52513406]
[1717379476968,2.3746,3802.1,3802.0,0.05113406]
[1717379477364,2.3746,3802.1,3801.9,0.474]
[1717379477571,2.3746,3802.1,3802.0,0.05113406]
[1717379482950,2.4021,3802.3,3802.0,0.05113406]
[1717379483329,2.4021,3802.3,3801.9,0.474]
[1717379485951,7.28,3802.9,3801.9,4.8974]
[1717379486264,5.03153,3803.1,3802.5,0.474]
[1717379486627,5.03153,3803.1,3802.7,0.474]
[1717379487061,5.03153,3803.1,3802.8,0.05071656]
[1717379487259,2.4021,3803.1,3802.7,0.474]
[1717379490971,2.4021,3803.1,3803.0,0.474]
[1717379491177,2.4021,3803.1,3802.8,0.474]
[1717379491544,2.4021,3803.1,3802.9,0.05071656]
[1717379492059,2.4021,3803.1,3802.8,0.474]
[1717379492256,2.4021,3803.1,3803.0,0.474]
[1717379492574,2.346,3803.4,3803.0,0.474]
[1717379493183,2.346,3803.4,3802.8,0.474]
[1717379493347,2.346,3803.4,3803.1,0.05048376]
[1717379493553,2.346,3803.4,3802.9,0.474]
[1717379494739,7.28,3803.5,3802.6,2.62975]
[1717379494939,7.28,3803.5,3803.4,0.474]
[1717379495681,7.28,3803.5,3803.2,0.474]
[1717379495880,2.3587,3803.6,3803.2,0.474]
[1717379496382,2.3587,3803.6,3803.3,0.05048376]
[1717379496757,2.3587,3803.6,3802.9,0.474]
[1717379496955,2.3587,3803.6,3803.4,0.05048376]
[1717379497155,2.3587,3803.6,3802.9,0.474]
[1717379497775,2.3587,3803.6,3803.0,0.05048376]
[1717379498570,2.3587,3803.6,3802.8,0.474]
[1717379498777,2.3587,3803.6,3803.1,0.05048376]
[1717379498952,2.3587,3803.6,3803.0,0.474]
[1717379499161,2.3587,3803.6,3803.2,0.05048376]
[1717379499486,2.3587,3803.6,3803.0,0.474]
[1717379499792,2.3587,3803.6,3803.3,0.05048376]
[1717379499951,2.3587,3803.6,3803.0,0.474]
[1717379500445,2.3587,3803.6,3803.1,0.05048376]
[1717379503348,2.4907,3803.9,3803.2,0.474]
[1717379503550,2.4907,3803.9,3803.0,2.4181]
[1717379503861,2.4907,3803.9,3803.3,0.05048376]
[1717379504178,2.4907,3803.9,3803.4,0.05029516]
[1717379504579,2.4907,3803.9,3803.1,0.474]
[1717379504796,2.4907,3803.9,3803.5,0.05029516]
[1717379505008,2.4907,3803.9,3803.1,0.474]
[1717379505588,2.4907,3803.9,3803.2,0.05029516]
[1717379506362,2.62896,3803.8,3803.2,0.05029516]
[1717379506568,2.2751,3803.5,3803.2,0.05029516]
[1717379506899,2.2751,3803.5,3802.6,0.474]
[1717379507100,2.2751,3803.5,3803.3,0.05029516]
[1717379507265,2.2751,3803.5,3802.8,0.474]
[1717379507590,2.2751,3803.5,3802.9,0.05029516]
[1717379513249,2.2751,3803.5,3803.1,0.474]
[1717379513827,2.2751,3803.5,3803.2,0.05029516]
[1717379514452,2.2721,3803.7,3803.2,0.05029516]
[1717379517229,2.67489553,3804.0,3803.3,0.474]
[1717379520167,2.67489553,3804.0,3803.5,0.474]
[1717379520663,0.31189553,3804.0,3803.5,0.474]
[1717379521529,0.31189553,3804.0,3803.2,2.3826]
[1717379521530,0.31189553,3804.0,3803.7,0.474]
[1717379521877,0.31189553,3804.0,3803.8,0.04986249]
[1717379522231,0.31189553,3804.0,3803.5,0.474]
[1717379522458,0.31189553,3804.0,3803.9,0.04986249]
[1717379522968,0.31189553,3804.0,3803.3,2.62929]
[1717379523171,0.31189553,3804.0,3803.9,0.52379029]
[1717379523345,0.31189553,3804.0,3803.3,2.62929]
[1717379523551,0.31189553,3804.0,3803.9,0.04979029]
[1717379523766,0.31189553,3804.0,3803.8,0.474]
[1717379523946,0.31189553,3804.0,3803.9,0.04979029]
[1717379525135,0.31189553,3804.0,3803.6,2.3397]
[1717379525136,0.31189553,3804.0,3803.7,0.474]
[1717379525353,0.31189553,3804.0,3803.9,0.474]
[1717379525836,0.31189553,3804.0,3803.9,2.9333]
[1717379526086,0.31189553,3804.0,3803.9,2.982986]
[1717379526233,0.005,3804.2,3803.9,6.83823884]
[1717379526442,0.005,3804.2,3804.0,6.53662534]
[1717379526783,7.28,3805.6,3804.9,2.62815]
[1717379526933,7.28,3806.1,3805.1,0.474]
[1717379527136,7.28,3806.1,3805.0,5.4593]
[1717379527341,7.28,3806.1,3805.1,0.52292815]
[1717379527542,2.62705,3806.6,3805.1,0.52292815]
[1717379528040,2.62705,3806.6,3805.1,1.07292815]
[1717379528292,2.62705,3806.6,3805.1,0.04892815]
[1717379528441,0.474,3806.5,3805.1,0.52292815]
[1717379528642,2.262,3805.9,3805.1,0.04892815]
[1717379529340,2.262,3805.9,3804.7,0.474]
[1717379529542,0.474,3805.7,3804.8,0.04599658]
[1717379529976,2.778,3806.3,3803.5,4.95702]
[1717379530263,5.11235,3805.1,3804.9,0.04599658]
[1717379530558,5.11235,3805.1,3804.0,1.135]
[1717379530789,2.62805,3805.1,3803.7,2.62899]
[1717379530995,2.3642,3805.6,3804.0,1.135]
[1717379531196,2.3642,3805.6,3804.0,3.6281]
[1717379531547,2.3642,3805.6,3804.5,1.135]
[1717379532004,2.3642,3806.2,3804.9,1.135]
[1717379532289,2.62715,3806.4,3804.9,1.135]
[1717379532456,2.62715,3806.4,3805.0,0.55]
[1717379532658,2.62715,3806.4,3805.0,0.59599658]
[1717379532883,2.62715,3806.4,3805.0,0.04599658]
[1717379533084,2.62715,3806.4,3805.0,0.59599658]
[1717379533678,2.62715,3806.4,3805.1,2.62805]
[1717379533884,2.62715,3806.4,3805.1,6.17805]
[1717379534287,2.62715,3806.4,3805.1,6.22404658]
[1717379534892,7.3789406,3806.9,3805.1,7.06645561]
[1717379535115,7.3789406,3806.9,3805.1,7.45318611]
[1717379535834,7.3789406,3806.9,3805.1,8.58818611]
[1717379536179,7.3789406,3806.9,3805.1,10.36338611]
[1717379536517,0.0989406,3806.9,3805.8,2.3252]
[1717379536720,0.0989406,3806.9,3805.9,0.55250978]
[1717379536918,0.0989406,3806.9,3805.9,0.59844234]
[1717379537102,0.0489406,3806.9,3805.9,3.59844234]
[1717379537419,0.0489406,3806.9,3806.1,2.62732]
[1717379537726,0.0489406,3806.9,3806.2,3.55]
[1717379538105,0.0489406,3806.9,3806.3,0.04593256]
[1717379540205,2.6269,3806.8,3805.7,3.0]
[1717379540506,4.9403,3806.8,3806.4,0.0456485]
[1717379540714,4.9403,3806.8,3805.1,2.62803]
[1717379541230,2.6269,3806.8,3805.7,1.135]
[1717379541438,0.0489406,3806.9,3805.8,5.12532]
[1717379541743,0.0489406,3806.9,3805.9,3.0]
[1717379541953,0.0489406,3806.9,3806.0,0.55]
[1717379542464,0.0489406,3806.9,3806.1,0.0455965]
[1717379543162,2.6757706,3806.9,3806.1,0.0455965]
[1717379543369,2.6757706,3806.9,3805.9,3.0]
[1717379543711,2.6757706,3806.9,3806.2,0.0456085]
[1717379543966,2.6757706,3806.9,3805.9,3.0]
[1717379544250,2.6757706,3806.9,3806.3,0.0456085]
[1717379544424,2.6757706,3806.9,3805.9,2.62749]
[1717379544610,2.6757706,3806.9,3806.4,0.0456205]
[1717379544811,0.0489406,3806.9,3806.0,3.0]
[1717379545021,0.0489406,3806.9,3806.5,0.0456205]
[1717379545221,0.0489406,3806.9,3806.0,3.0]
[1717379545425,0.0489406,3806.9,3806.6,0.0456205]
[1717379545909,0.0489406,3806.9,3806.7,0.0456205]
[1717379546646,0.0489406,3806.9,3806.8,0.0456205]
[1717379546854,0.0489406,3806.9,3806.0,3.0]
[1717379547213,0.0489406,3806.9,3806.1,0.0456205]
[1717379547659,0.0489406,3806.9,3805.5,3.0]
[1717379547821,0.0489406,3806.9,3806.2,0.04393489]
[1717379548022,0.0489406,3806.9,3805.5,3.0]
[1717379548217,0.0489406,3806.9,3806.3,0.04393489]
[1717379548218,2.4615,3806.7,3806.3,0.04393489]
[1717379548419,2.71254406,3806.7,3805.4,2.6278]
[1717379548738,2.71254406,3806.7,3805.5,0.04393489]
[1717379548934,2.4615,3806.7,3805.5,0.04393489]
[1717379549310,2.62706,3806.6,3805.6,2.62769]
[1717379549516,0.0489406,3806.9,3805.6,3.76269]
[1717379549718,4.9871306,3807.1,3805.7,0.55]
[1717379549947,4.9871306,3807.1,3805.7,0.92216747]
[1717379550150,4.9871306,3807.1,3805.8,2.62756]
[1717379550354,2.5256306,3807.1,3805.8,2.95579258]
[1717379550530,2.5256306,3807.1,3806.0,2.62739]
[1717379550726,2.5256306,3807.1,3806.1,3.0]
[1717379551153,2.5256306,3807.1,3806.2,0.04393489]
[1717379552031,2.5256306,3807.1,3805.6,3.0]
[1717379552363,4.89177,3806.7,3806.3,0.04393489]
[1717379552559,4.89177,3806.7,3805.6,3.0]
[1717379552744,4.89177,3806.7,3805.7,0.04401082]
[1717379553755,2.62725,3806.3,3805.7,0.04401082]
[1717379554324,2.62725,3806.3,3805.3,2.6279]
[1717379554660,2.62725,3806.3,3805.4,3.0441667]
[1717379555034,2.2648,3806.7,3805.4,3.0441667]
[1717379555238,2.2648,3806.7,3805.5,0.55]
[1717379555631,2.2648,3806.7,3805.6,0.0441627]
[1717379556458,2.62707,3806.6,3805.6,0.0441627]
[1717379560567,2.62707,3806.6,3805.4,3.0]
[1717379561067,2.62707,3806.6,3805.5,0.04393894]
[1717379562750,13.335,3807.5,3805.5,0.04393894]
[1717379562751,2.62755,3805.9,3805.5,0.04393894]
[1717379562952,2.62755,3805.9,3804.7,0.32823258]
[1717379563153,2.62755,3805.9,3804.7,2.95650258]
[1717379563353,2.62755,3805.9,3804.8,0.03941174]
[1717379564757,2.62755,3805.9,3804.9,2.62818]
[1717379565093,2.62755,3805.9,3805.0,0.55]
[1717379565283,2.62755,3805.9,3805.0,0.58941174]
[1717379565647,2.62755,3805.9,3805.1,2.62803]
[1717379565876,2.62718,3806.4,3805.2,0.55]
[1717379566398,2.62718,3806.4,3805.3,0.03941174]
[1717379566604,2.62688,3806.8,3805.7,1.135]
[1717379566919,0.2119847,3807.9,3806.5,1.135]
[1717379566920,7.28,3807.5,3806.5,1.135]
[1717379567079,2.62632,3807.7,3806.2,2.62725]
[1717379567282,2.62632,3807.7,3806.6,0.03941174]
[1717379567453,2.62632,3807.7,3806.3,0.262725]
[1717379567655,1.135,3807.4,3806.3,0.262725]
[1717379567982,1.135,3807.4,3806.4,0.03941174]
[1717379568196,2.62632,3807.7,3806.4,0.03941174]
[1717379568547,1.135,3807.4,3806.4,0.03941174]
[1717379568775,2.62632,3807.7,3806.2,2.62725]
[1717379569101,2.62632,3807.7,3806.3,0.03941174]
[1717379569102,1.135,3807.2,3806.3,0.03941174]
[1717379569281,1.135,3806.8,3806.3,0.03941174]
[1717379569589,1.135,3806.8,3805.6,2.62764]
[1717379569590,1.135,3806.4,3805.6,2.62764]
[1717379569747,1.135,3806.4,3805.0,2.62806]
[1717379569948,1.135,3805.9,3805.0,2.62806]
[1717379570209,1.135,3805.9,3805.1,0.03941174]
[1717379570698,2.4825,3806.1,3805.1,0.03941174]
[1717379570856,3.6175,3806.1,3805.1,0.03941174]
[1717379572513,3.6175,3806.1,3804.4,2.62853]
[1717379573045,3.6175,3806.1,3804.5,0.03941174]
[1717379573195,4.241981,3806.1,3804.5,3.03941174]
[1717379573590,3.741981,3806.1,3804.5,3.03941174]
[1717379573827,3.741981,3806.1,3804.6,2.62836]
[1717379574522,3.741981,3806.1,3804.8,2.62823]
[1717379575130,3.741981,3806.1,3804.9,0.03967554]
[1717379577027,2.6275,3805.9,3804.9,0.03967554]
[1717379577239,1.135,3805.7,3804.9,0.03967554]
[1717379577718,1.135,3805.7,3804.3,2.62857]
[1717379577934,2.62771,3805.6,3804.3,2.62857]
[1717379578119,2.62771,3805.6,3804.4,0.03967554]
[1717379578322,0.376271,3805.5,3804.4,0.03967554]
[1717379578899,2.62799,3805.2,3804.4,0.03967554]
[1717379579195,2.62799,3805.2,3803.8,2.62893]
[1717379579403,2.62799,3805.2,3804.0,2.62878]
[1717379579821,2.62799,3805.2,3804.1,0.04032306]
[1717379581735,1.135,3804.9,3804.1,0.04032306]
[1717379581896,2.62827,3804.8,3804.1,0.04032306]
[1717379582096,2.62827,3804.8,3803.4,2.62916]
[1717379582097,2.2748,3804.6,3803.4,2.62916]
[1717379583947,2.2748,3804.6,3802.7,5.4996]
[1717379583948,1.135,3804.0,3802.9,2.62954]
[1717379584237,2.2748,3804.6,3803.0,0.04032306]
[1717379584405,1.135,3804.3,3803.0,0.04032306]
[1717379584615,3.76361,3804.3,3803.0,0.04032306]
[1717379586108,2.4259,3803.8,3803.0,0.04032306]
[1717379586422,2.4259,3803.8,3802.4,2.62989]
[1717379586661,2.4259,3803.8,3803.1,0.04079089]
[1717379586854,0.618983,3803.7,3803.1,0.04079089]
[1717379587076,0.618983,3803.7,3802.4,2.62989]
[1717379587236,0.618983,3803.7,3803.2,0.04079089]
[1717379587442,0.618983,3803.7,3802.4,2.62989]
[1717379587978,0.618983,3803.7,3802.5,0.59079089]
[1717379588286,0.618983,3803.7,3802.5,0.04079089]
[1717379588287,2.62909,3803.6,3802.5,0.04079089]
[1717379588463,1.135,3803.1,3802.5,0.04079089]
[1717379588971,1.135,3803.1,3801.9,2.63024]
[1717379589176,1.135,3803.1,3802.6,0.04079089]
[1717379589386,1.135,3802.7,3801.3,5.08381]
[1717379589771,1.135,3802.7,3801.3,2.63061]
[1717379591693,1.135,3802.7,3801.4,0.55]
[1717379592888,1.135,3802.7,3801.5,2.63053]
[1717379593992,2.62963,3802.9,3801.7,2.63039]
[1717379594165,1.135,3802.7,3801.7,2.63039]
[1717379594367,1.737983,3802.7,3801.7,2.63039]
[1717379594621,2.62978,3802.6,3801.2,2.6307]
[1717379594822,2.62978,3802.6,3801.3,0.55]
[1717379595691,2.62978,3802.6,3801.5,2.63053]
[1717379596205,2.2652,3803.0,3801.5,2.63053]
[1717379596786,2.2652,3803.0,3801.6,0.04261166]
[1717379597383,1.135,3802.7,3801.6,0.04261166]
[1717379600421,2.3464,3802.4,3801.6,0.04261166]
[1717379602457,2.63,3802.3,3801.6,0.04261166]
[1717379602619,1.135,3801.9,3801.6,0.04261166]
[1717379602953,1.135,3801.9,3801.0,2.63082]
[1717379603115,1.135,3801.9,3801.7,0.04141992]
[1717379603311,1.135,3801.9,3801.0,2.63082]
[1717379603542,1.135,3801.9,3801.8,0.04141992]
[1717379603754,1.135,3801.9,3801.0,2.63082]
[1717379603955,3.76526,3801.9,3801.0,2.63082]
[1717379604160,3.76526,3801.9,3801.1,0.04149602]
[1717379604363,4.141786,3801.9,3801.1,0.04149602]
[1717379605281,1.135,3801.9,3801.1,0.04149602]
[1717379605439,2.3464,3802.4,3801.4,2.6306]
[1717379605627,2.3302,3802.8,3801.4,2.6306]
[1717379606040,2.3302,3802.8,3801.6,2.63043]
[1717379606774,2.3302,3802.8,3801.3,2.3245]
[1717379606775,2.62962,3802.9,3801.8,2.63032]
[1717379607185,0.00107634,3803.1,3801.8,2.63032]
[1717379607389,0.00107634,3803.1,3802.0,2.63016]
[1717379607567,0.00107634,3803.1,3802.3,2.62997]
[1717379608861,0.00107634,3803.1,3802.5,2.62981]
[1717379609443,0.00107634,3803.1,3802.2,0.28326821]
[1717379609444,0.00107634,3803.1,3802.7,2.62967]
[1717379609881,0.00107634,3803.1,3802.8,0.04095952]
[1717379610046,0.00107634,3803.1,3802.9,2.62957]
[1717379610466,0.00107634,3803.1,3803.0,0.04095952]
[1717379610988,0.00107634,3803.1,3803.0,0.59095952]
[1717379611367,3.39207634,3803.1,3803.0,0.04095952]
[1717379611799,2.6298,3802.6,3800.8,2.63101]
[1717379611968,1.135,3802.1,3800.8,2.63101]
[1717379612176,1.135,3802.1,3800.9,0.03475934]
[1717379613248,2.6301,3802.2,3801.0,2.63085]
[1717379613704,2.6301,3802.2,3801.1,0.03344346]
[1717379616790,2.6301,3802.2,3801.2,2.63074]
[1717379617382,2.6301,3802.2,3801.3,0.03344346]
[1717379618670,2.62974,3802.7,3801.3,0.03344346]
[1717379619715,2.62974,3802.7,3801.4,2.63055]
[1717379620181,2.62974,3802.7,3801.5,0.03403541]
[1717379625177,2.62993,3802.4,3801.5,0.03403541]
[1717379630496,2.62993,3802.4,3801.1,3.0]
[1717379631021,2.62993,3802.4,3801.2,0.03470328]
[1717379631214,3.123443,3802.4,3801.2,0.03470328]
[1717379635458,2.62993,3802.4,3801.2,0.03470328]
[1717379637312,2.6304,3801.8,3801.2,0.03470328]
[1717379637721,2.6304,3801.8,3800.7,2.63108]
[1717379637929,2.6304,3801.8,3801.3,0.03515146]
[1717379638228,2.2923,3801.7,3800.8,3.0]
[1717379638644,2.2923,3801.7,3800.9,0.03515947]
[1717379639655,2.2923,3801.7,3801.0,0.03517147]
[1717379640091,2.2923,3801.7,3800.7,2.63108]
[1717379640299,2.2923,3801.7,3801.1,0.03517147]
[1717379640440,2.2923,3801.7,3800.7,2.63108]
[1717379640642,2.2923,3801.7,3800.8,0.03525553]
[1717379641641,2.2923,3801.7,3800.9,2.63093]
[1717379641838,4.96197,3802.2,3800.9,2.63093]
[1717379642043,4.96197,3802.2,3801.1,2.63078]
[1717379642795,4.96197,3802.2,3801.2,0.03525553]
[1717379643696,4.96197,3802.2,3801.3,2.63066]
[1717379644065,4.96197,3802.2,3801.4,0.03525553]
[1717379644281,4.96197,3802.2,3801.3,2.63066]
[1717379644465,6.06018,3802.6,3801.3,2.63066]
[1717379645190,4.92318,3802.6,3801.6,2.63045]
[1717379645551,4.92318,3802.6,3801.7,0.03525553]
[1717379652307,2.62992,3802.4,3801.7,0.03525553]
[1717379652514,3.241732,3802.4,3801.1,2.63081]
[1717379652680,2.62992,3802.4,3801.8,0.0351581]
[1717379652881,2.62992,3802.4,3801.1,2.63081]
[1717379653083,2.62992,3802.4,3801.9,0.0351581]
[1717379653282,2.62992,3802.4,3801.1,2.63081]
[1717379653469,2.62992,3802.4,3802.0,0.0351581]
[1717379653805,2.63017,3802.1,3801.1,2.63081]
[1717379654174,2.63017,3802.1,3801.2,0.0351581]
[1717379654567,2.63017,3802.1,3801.1,2.63081]
[1717379655084,2.63017,3802.1,3801.2,0.0351581]
[1717379655271,2.63017,3802.1,3801.1,2.63081]
[1717379655468,2.63017,3802.1,3801.3,0.03406665]
[1717379655808,2.63017,3802.1,3801.1,2.63081]
[1717379656102,2.63017,3802.1,3801.2,0.03406665]
[1717379656265,3.3143482,3802.1,3801.1,2.63081]
[1717379656467,3.3143482,3802.1,3801.3,0.03406665]
[1717379656701,2.63017,3802.1,3801.1,2.63081]
[1717379656903,2.63017,3802.1,3801.4,0.03406665]
[1717379657103,2.63017,3802.1,3801.1,2.63081]
[1717379657379,2.63017,3802.1,3801.5,0.03406665]
[1717379657580,2.63017,3802.1,3801.1,2.63081]
[1717379658204,2.63017,3802.1,3801.2,0.03406665]
[1717379658891,2.4628,3802.3,3801.3,2.63062]